bitfinex-derivatives/quotes_BNBF0:USTF0_20250609
["timestamp","ask_amount","ask_price","bid_price","bid_amount"]
[1749490478541,1.09803332,659.74,658.53,0.26399335]
[1749490478841,1.09803332,659.73,658.53,0.26399335]
[1749490479045,1.09803332,659.72,658.53,0.26399335]
[1749490479238,1.40119683,659.71,658.53,0.26399335]
[1749490479539,1.40120142,659.7,658.53,0.26399335]
[1749490479741,1.40120602,659.69,658.53,0.26399335]
[1749490479944,1.40121061,659.68,658.53,0.26399335]
[1749490480141,1.09803332,659.67,658.53,0.26399335]
[1749490480339,1.40121981,659.66,658.04,3.77350532]
[1749490480543,1.4012244,659.65,658.41,0.26409753]
[1749490480741,1.401229,659.64,658.41,0.26409753]
[1749490480940,1.09803332,659.63,658.41,0.26409753]
[1749490481143,1.09803332,659.62,658.41,0.26409753]
[1749490481339,1.40124279,659.61,658.41,0.26409753]
[1749490481545,1.40124738,659.6,658.41,0.26409753]
[1749490481842,1.40125198,659.59,658.41,0.26409753]
[1749490482042,1.40125658,659.58,658.41,0.26409753]
[1749490482241,1.40126118,659.57,658.41,0.26409753]
[1749490482442,1.09803332,659.56,658.41,0.26409753]
[1749490482646,1.09803332,659.55,658.41,0.26409753]
[1749490482842,1.09803332,659.54,658.41,0.26409753]
[1749490483047,1.09803332,659.53,658.41,0.26409753]
[1749490483242,1.09803332,659.52,658.41,0.26409753]
[1749490483443,1.09803332,659.51,658.41,0.26409753]
[1749490483645,1.09803332,659.5,658.41,0.26409753]
[1749490483845,1.09803332,659.56,658.41,0.26409753]
[1749490484042,1.09803332,659.55,658.41,0.26409753]
[1749490484244,1.09803332,659.54,658.41,0.26409753]
[1749490484444,1.09803332,659.53,658.41,0.26409753]
[1749490484644,1.09803332,659.52,658.41,0.26409753]
[1749490484846,1.09803332,659.51,658.41,0.26409753]
[1749490485044,1.09803332,659.56,658.41,0.26409753]
[1749490485249,1.09803332,659.55,658.41,0.26409753]
[1749490485445,1.09803332,659.54,658.41,0.26409753]
[1749490485646,1.09803332,659.53,658.41,0.26409753]
[1749490485845,1.09803332,659.52,658.41,0.26409753]
[1749490486046,1.09803332,659.51,658.41,0.26409753]
[1749490486249,1.09803332,659.56,658.41,0.26409753]
[1749490486549,1.09803332,659.55,658.41,0.26409753]
[1749490486745,0.30322786,659.57,658.41,0.26409753]
[1749490486746,1.09803332,659.54,658.41,0.26409753]
[1749490486943,1.09803332,659.53,658.41,0.26409753]
[1749490487145,1.09803332,659.52,658.41,0.26409753]
[1749490487448,1.09803332,659.51,658.41,0.26409753]
[1749490487744,1.09803332,659.56,658.41,0.26409753]
[1749490487950,1.09803332,659.55,658.41,0.26409753]
[1749490488148,1.09803332,659.54,658.41,0.26409753]
[1749490488355,1.09803332,659.53,658.41,0.26409753]
[1749490488648,1.09803332,659.56,658.41,0.26409753]
[1749490488848,1.09803332,659.55,658.41,0.26409753]
[1749490489048,1.09803332,659.54,658.41,0.26409753]
[1749490489246,1.09803332,659.53,658.41,0.26409753]
[1749490489453,1.09803332,659.56,658.41,0.26409753]
[1749490489652,1.09803332,659.55,658.41,0.26409753]
[1749490489947,1.09803332,659.54,658.41,0.26409753]
[1749490490149,1.09803332,659.56,658.41,0.26409753]
[1749490490748,0.30322786,659.57,658.41,0.26409753]
[1749490503160,0.30322786,659.57,658.42,0.30375748]
[1749490510566,0.30322786,659.57,658.43,3.77350532]
[1749490510867,0.30322786,659.57,658.44,0.30374825]
[1749490517271,0.30322786,659.57,658.44,4.07725357]
[1749490517667,0.30322786,659.57,658.44,0.30374825]
[1749490522575,1.09949669,659.56,658.44,0.30374825]
[1749490523473,1.09949669,659.55,658.44,0.30374825]
[1749490523677,1.09949669,659.56,658.44,0.30374825]
[1749490525374,1.40272914,659.56,658.44,0.30374825]
[1749490525574,1.09949669,659.55,658.44,0.30374825]
[1749490525775,1.09949669,659.54,658.44,0.30374825]
[1749490526074,1.09949669,659.55,658.44,0.30374825]
[1749490526277,1.09949669,659.54,658.44,0.30374825]
[1749490526480,1.09949669,659.53,658.44,0.30374825]
[1749490526677,1.09949669,659.55,658.44,0.30374825]
[1749490526882,1.09949669,659.54,658.44,0.30374825]
[1749490527182,1.09949669,659.53,658.44,0.30374825]
[1749490527382,1.09949669,659.55,658.44,0.30374825]
[1749490527577,1.09949669,659.54,658.44,0.30374825]
[1749490527777,1.09949669,659.55,658.44,0.30374825]
[1749490528082,1.09949669,659.54,658.44,0.30374825]
[1749490528282,1.09949669,659.55,658.44,0.30374825]
[1749490528479,1.09949669,659.54,658.44,0.30374825]
[1749490528779,1.09949669,659.55,658.44,0.30374825]
[1749490528983,1.09949669,659.54,658.44,0.30374825]
[1749490529183,1.09949669,659.55,658.44,0.30374825]
[1749490529383,1.09949669,659.54,658.44,0.30374825]
[1749490529678,1.09949669,659.53,658.44,0.30374825]
[1749490529883,0.30323245,659.56,658.44,0.30374825]
[1749490529884,1.09949669,659.52,658.44,0.30374825]
[1749490530081,1.09949669,659.51,658.44,0.30374825]
[1749490530283,1.09949669,659.5,658.44,0.30374825]
[1749490530485,1.09949669,659.49,658.44,0.30374825]
[1749490530684,1.09949669,659.55,658.44,0.30374825]
[1749490530880,1.09949669,659.54,658.44,0.30374825]
[1749490531082,1.09949669,659.53,658.44,0.30374825]
[1749490531282,1.09949669,659.52,658.44,0.30374825]
[1749490531485,1.09949669,659.51,658.44,0.30374825]
[1749490531784,1.09949669,659.5,658.44,0.30374825]
[1749490531980,1.09949669,659.49,658.44,0.30374825]
[1749490532182,1.09949669,659.48,658.44,0.30374825]
[1749490532482,1.09949669,659.47,658.44,0.30374825]
[1749490532681,1.09949669,659.46,658.44,0.30374825]
[1749490532882,1.09949669,659.55,658.44,0.30374825]
[1749490533182,1.09949669,659.54,658.44,0.30374825]
[1749490533385,1.09949669,659.53,658.44,0.30374825]
[1749490533581,1.09666724,659.52,658.44,0.30374825]
[1749490533785,1.09666724,659.51,658.44,0.30374825]
[1749490533984,1.09666724,659.5,658.44,0.30374825]
[1749490534186,1.09666724,659.49,658.44,0.30374825]
[1749490534383,1.09666724,659.48,658.44,0.30374825]
[1749490534583,1.09666724,659.47,658.44,0.30374825]
[1749490534787,1.09666724,659.55,658.44,0.30374825]
[1749490534983,1.09666724,659.54,658.44,0.30374825]
[1749490535185,1.09666724,659.53,658.44,0.30374825]
[1749490535390,1.09666724,659.52,658.44,0.30374825]
[1749490535589,1.09666724,659.51,658.44,0.30374825]
[1749490535785,1.09666724,659.5,658.44,0.30374825]
[1749490536089,1.09666724,659.49,658.44,0.30374825]
[1749490536288,1.09666724,659.48,658.44,0.30374825]
[1749490536489,1.09666724,659.47,658.44,0.30374825]
[1749490536690,1.09666724,659.55,658.44,0.30374825]
[1749490536890,0.30323245,659.56,658.44,0.30374825]
[1749490536891,1.09666724,659.54,658.44,0.30374825]
[1749490537189,1.09666724,659.53,658.44,0.30374825]
[1749490537390,1.09666724,659.52,658.44,0.30374825]
[1749490537589,1.09666724,659.51,658.44,0.30374825]
[1749490537792,1.09666724,659.5,658.44,0.30374825]
[1749490537994,1.09666724,659.49,658.44,0.30374825]
[1749490538191,1.09666724,659.48,658.44,0.30374825]
[1749490538397,1.09666724,659.47,658.44,0.30374825]
[1749490538596,1.09666724,659.46,658.44,0.30374825]
[1749490538797,1.09666724,659.45,658.44,0.30374825]
[1749490539095,1.09666724,659.44,658.44,0.30374825]
[1749490539293,1.09666724,659.55,658.44,0.30374825]
[1749490539493,1.09666724,659.54,658.44,0.30374825]
[1749490539693,1.09666724,659.53,658.44,0.30374825]
[1749490539899,1.09666724,659.52,658.44,0.30374825]
[1749490540094,1.09666724,659.51,658.44,0.30374825]
[1749490540394,1.09666724,659.5,658.44,0.30374825]
[1749490540696,1.09666724,659.49,658.44,0.30374825]
[1749490540895,1.09666724,659.48,658.44,0.30374825]
[1749490541094,1.09666724,659.47,658.44,0.30374825]
[1749490541295,1.09666724,659.46,658.44,0.30374825]
[1749490541499,1.09666724,659.45,658.44,0.30374825]
[1749490541697,1.09666724,659.44,658.44,0.30374825]
[1749490541996,1.09666724,659.43,658.44,0.30374825]
[1749490542194,1.09666724,659.42,658.44,0.30374825]
[1749490542400,1.09666724,659.41,658.44,0.30374825]
[1749490542600,2.78606636,659.55,658.44,0.30374825]
[1749490542896,3.08904832,659.54,658.44,0.30374825]
[1749490543097,4.14715553,659.53,658.44,0.30374825]
[1749490543296,3.08905584,659.52,658.44,0.30374825]
[1749490543497,4.1478948,659.51,658.44,0.30374825]
[1749490543700,3.84463936,659.5,658.44,0.30374825]
[1749490543995,3.84463936,659.49,658.44,0.30374825]
[1749490544195,3.84463936,659.48,658.44,0.30374825]
[1749490544401,2.6929717,659.47,658.44,0.30374825]
[1749490544598,3.84447831,659.46,658.44,0.30374825]
[1749490544800,1.63413576,659.45,658.44,0.30374825]
[1749490545100,1.09666724,659.44,658.44,0.30374825]
[1749490545301,1.09666724,659.43,658.44,0.30374825]
[1749490545499,1.09666724,659.42,658.44,0.30374825]
[1749490545702,1.09666724,659.5,658.44,0.30374825]
[1749490545901,1.09666724,659.49,658.44,0.30374825]
[1749490546097,1.09666724,659.48,658.44,0.30374825]
[1749490546298,1.09666724,659.47,658.44,0.30374825]
[1749490546498,1.09666724,659.46,658.44,0.30374825]
[1749490546798,1.09666724,659.45,658.44,0.30374825]
[1749490547002,1.09666724,659.44,658.44,0.30374825]
[1749490547202,1.09666724,659.43,658.44,0.30374825]
[1749490547399,1.09666724,659.5,658.44,0.30374825]
[1749490547597,1.09666724,659.49,658.44,0.30374825]
[1749490547804,1.09666724,659.48,658.44,0.30374825]
[1749490548004,0.30325544,659.51,658.44,0.30374825]
[1749490548005,1.09666724,659.47,658.44,0.30374825]
[1749490548202,1.09666724,659.46,658.44,0.30374825]
[1749490548407,1.09666724,659.45,658.44,0.30374825]
[1749490548599,1.09666724,659.44,658.44,0.30374825]
[1749490548904,1.09666724,659.43,658.44,0.30374825]
[1749490549102,1.09666724,659.42,658.44,0.30374825]
[1749490549301,1.09666724,659.41,658.44,0.30374825]
[1749490549605,1.09666724,659.4,658.44,0.30374825]
[1749490549804,3.84334568,659.5,658.44,0.30374825]
[1749490550005,2.78469554,659.49,658.44,0.30374825]
[1749490550300,3.84325353,659.48,658.44,0.30374825]
[1749490550505,3.30591887,659.47,658.44,0.30374825]
[1749490550702,3.84325194,659.46,658.44,0.30374825]
[1749490550901,1.09666724,659.45,658.44,0.30374825]
[1749490551106,1.09666724,659.5,658.44,0.30374825]
[1749490551304,1.09666724,659.49,658.44,0.30374825]
[1749490551605,1.09666724,659.48,658.44,0.30374825]
[1749490551803,1.09666724,659.5,658.44,0.30374825]
[1749490552004,1.09666724,659.49,658.44,0.30374825]
[1749490552201,1.09666724,659.48,658.44,0.30374825]
[1749490552402,1.09666724,659.5,658.44,0.30374825]
[1749490552704,1.09666724,659.49,658.44,0.30374825]
[1749490552902,0.30325544,659.51,658.44,0.30374825]
[1749490552903,1.09666724,659.48,658.44,0.30374825]
[1749490553104,1.09666724,659.5,658.44,0.30374825]
[1749490553404,1.09666724,659.49,658.44,0.30374825]
[1749490553605,1.09666724,659.48,658.44,0.30374825]
[1749490553802,1.09666724,659.5,658.44,0.30374825]
[1749490554006,1.09666724,659.49,658.44,0.30374825]
[1749490554307,1.09666724,659.5,658.44,0.30374825]
[1749490554505,1.09666724,659.49,658.44,0.30374825]
[1749490554705,1.09666724,659.5,658.44,0.30374825]
[1749490555002,1.09666724,659.49,658.44,0.30374825]
[1749490555203,1.09666724,659.5,658.44,0.30374825]
[1749490555404,1.09666724,659.49,658.44,0.30374825]
[1749490555604,1.09666724,659.5,658.44,0.30374825]
[1749490555803,1.09666724,659.49,658.44,0.30374825]
[1749490556108,1.09666724,659.5,658.44,0.30374825]
[1749490556407,1.09666724,659.49,658.44,0.30374825]
[1749490556604,1.09666724,659.5,658.44,0.30374825]
[1749490556804,1.09666724,659.49,658.44,0.30374825]
[1749490557008,1.09666724,659.5,658.44,0.30374825]
[1749490557205,1.09666724,659.49,658.44,0.30374825]
[1749490557409,1.09666724,659.5,658.44,0.30374825]
[1749490557610,0.30325544,659.51,658.44,0.30374825]
[1749490558812,1.39992268,659.51,658.44,0.30374825]
[1749490559013,0.30325544,659.51,658.44,0.30374825]
[1749490561009,1.39992268,659.51,658.44,0.30374825]
[1749490561209,1.09666724,659.5,658.44,0.30374825]
[1749490561410,1.09666724,659.49,658.44,0.30374825]
[1749490561614,1.09666724,659.48,658.44,0.30374825]
[1749490561815,1.09666724,659.47,658.44,0.30374825]
[1749490562014,1.09666724,659.46,658.44,0.30374825]
[1749490562310,1.09666724,659.45,658.44,0.30374825]
[1749490562509,1.09666724,659.44,658.44,0.30374825]
[1749490562716,1.09666724,659.5,658.44,0.30374825]
[1749490562914,1.09666724,659.49,658.44,0.30374825]
[1749490563213,1.09666724,659.48,658.44,0.30374825]
[1749490563510,1.09666724,659.47,658.44,0.30374825]
[1749490563709,1.09666724,659.46,658.44,0.30374825]
[1749490563913,1.09666724,659.45,658.44,0.30374825]
[1749490564111,1.09666724,659.44,658.44,0.30374825]
[1749490564317,3.84596315,659.48,658.44,0.30374825]
[1749490564612,1.63297448,659.47,658.44,0.30374825]
[1749490564811,1.09666724,659.46,658.44,0.30374825]
[1749490565011,1.09666724,659.45,658.44,0.30374825]
[1749490565211,1.09666724,659.44,658.44,0.30374825]
[1749490565417,1.09666724,659.43,658.44,0.30374825]
[1749490565609,2.69380849,659.46,658.44,0.30374825]
[1749490565809,1.09666724,659.45,658.44,0.30374825]
[1749490566015,1.09666724,659.44,658.44,0.30374825]
[1749490566312,1.09666724,659.43,658.44,0.30374825]
[1749490566515,1.09666724,659.5,658.44,0.30374825]
[1749490566710,1.09666724,659.49,658.44,0.30374825]
[1749490566911,1.09666724,659.48,658.44,0.30374825]
[1749490567116,0.30325544,659.51,658.44,0.30374825]
[1749490567117,1.09666724,659.47,658.44,0.30374825]
[1749490567415,1.09666724,659.46,658.44,0.30374825]
[1749490567616,1.09666724,659.45,658.44,0.30374825]
[1749490567816,1.09666724,659.44,658.44,0.30374825]
[1749490568013,1.09666724,659.43,658.44,0.30374825]
[1749490568318,2.78636965,659.47,658.44,0.30374825]
[1749490568512,1.09666724,659.46,658.44,0.30374825]
[1749490568716,1.09603927,659.45,658.44,0.30374825]
[1749490568918,1.09603927,659.44,658.44,0.30374825]
[1749490569217,1.09603927,659.5,658.44,0.30374825]
[1749490569418,1.09603927,659.49,658.44,0.30374825]
[1749490569618,1.09603927,659.48,658.44,0.30374825]
[1749490569915,1.09603927,659.47,658.44,0.30374825]
[1749490570118,1.09603927,659.46,658.44,0.30374825]
[1749490570316,1.09603927,659.45,658.44,0.30374825]
[1749490570515,2.69245662,659.48,658.44,0.30374825]
[1749490570818,3.84561616,659.47,658.44,0.30374825]
[1749490571017,3.84561616,659.46,658.44,0.30374825]
[1749490571217,3.84561616,659.45,658.44,0.30374825]
[1749490571416,2.78650092,659.44,658.44,0.30374825]
[1749490571613,1.09603927,659.43,658.44,0.30374825]
[1749490571819,1.09603927,659.5,658.44,0.30374825]
[1749490572016,1.09603927,659.49,658.44,0.30374825]
[1749490572217,1.09603927,659.48,658.44,0.30374825]
[1749490572414,1.09603927,659.47,658.44,0.30374825]
[1749490572718,1.09603927,659.46,658.44,0.30374825]
[1749490572921,1.09603927,659.45,658.44,0.30374825]
[1749490573220,1.09603927,659.44,658.44,0.30374825]
[1749490573417,1.09603927,659.43,658.44,0.30374825]
[1749490573622,1.09603927,659.42,658.44,0.30374825]
[1749490573822,1.09603927,659.41,658.44,0.30374825]
[1749490574020,1.09603927,659.4,658.44,0.30374825]
[1749490574222,2.69519015,659.5,658.44,0.30374825]
[1749490574422,2.78536843,659.49,658.44,0.30374825]
[1749490574622,2.69519015,659.48,658.44,0.30374825]
[1749490574821,2.78536843,659.47,658.44,0.30374825]
[1749490575018,2.69581901,659.46,658.44,0.30374825]
[1749490575216,2.78603698,659.45,658.44,0.30374825]
[1749490575420,3.84891707,659.44,658.44,0.30374825]
[1749490575716,3.3114181,659.43,658.44,0.30374825]
[1749490575919,3.3114181,659.42,658.44,0.30374825]
[1749490576119,1.63410249,659.41,658.44,0.30374825]
[1749490576323,1.09603927,659.4,658.44,0.30374825]
[1749490576518,1.09603927,659.39,658.44,0.30374825]
[1749490576822,1.09603927,659.38,658.44,0.30374825]
[1749490577021,1.09603927,659.37,658.44,0.30374825]
[1749490577220,1.09603927,659.36,658.44,0.30374825]
[1749490577521,1.09603927,659.35,658.44,0.30374825]
[1749490577716,1.09603927,659.34,658.44,0.30374825]
[1749490577918,1.09603927,659.33,658.44,0.30374825]
[1749490578117,1.09603927,659.32,658.44,0.30374825]
[1749490578319,1.09603927,659.31,658.44,0.30374825]
[1749490578519,1.09603927,659.3,658.44,0.30374825]
[1749490578723,1.13155769,659.48,658.44,0.30374825]
[1749490578724,1.09603927,659.29,658.44,0.30374825]
[1749490579019,2.25013677,659.38,658.44,0.30374825]
[1749490579225,1.63354426,659.37,658.44,0.30374825]
[1749490579425,1.09603927,659.36,658.44,0.30374825]
[1749490579724,1.09603927,659.35,658.44,0.30374825]
[1749490579920,1.09603927,659.34,658.44,0.30374825]
[1749490580125,1.09603927,659.33,658.44,0.30374825]
[1749490580324,1.13155769,659.47,658.44,0.30374825]
[1749490580325,1.09603927,659.32,658.44,0.30374825]
[1749490580622,1.09603927,659.31,658.44,0.30374825]
[1749490580826,1.09603927,659.3,658.44,0.30374825]
[1749490581021,1.09603927,659.29,658.44,0.30374825]
[1749490581222,1.09603927,659.28,658.44,0.30374825]
[1749490581420,1.09603927,659.27,658.44,0.30374825]
[1749490581624,1.09603927,659.26,658.44,0.30374825]
[1749490581921,1.09603927,659.25,658.44,0.30374825]
[1749490582121,1.63418447,659.35,658.44,0.30374825]
[1749490582425,1.09603927,659.34,658.44,0.30374825]
[1749490582725,1.09603927,659.33,658.44,0.30374825]
[1749490582923,1.09603927,659.32,658.44,0.30374825]
[1749490583222,1.09603927,659.31,658.44,0.30374825]
[1749490583521,1.09603927,659.3,658.44,0.30374825]
[1749490583721,0.30325544,659.51,658.44,0.30374825]
[1749490583722,1.09603927,659.29,658.44,0.30374825]
[1749490583919,1.09603927,659.28,658.44,0.30374825]
[1749490584122,1.09603927,659.27,658.44,0.30374825]
[1749490584420,1.09603927,659.26,658.44,0.30374825]
[1749490584622,1.09603927,659.25,658.44,0.30374825]
[1749490584826,1.09603927,659.24,658.44,0.30374825]
[1749490585025,1.09603927,659.23,658.44,0.30374825]
[1749490585221,1.63444587,659.33,658.44,0.30374825]
[1749490585522,1.09603927,659.32,658.44,0.30374825]
[1749490585721,1.09603927,659.31,658.44,0.30374825]
[1749490585921,1.09603927,659.3,658.44,0.30374825]
[1749490586120,1.09603927,659.29,658.44,0.30374825]
[1749490586423,1.09603927,659.28,658.44,0.30374825]
[1749490586623,1.09603927,659.27,658.44,0.30374825]
[1749490586925,1.09603927,659.26,658.44,0.30374825]
[1749490587125,1.09603927,659.25,658.44,0.30374825]
[1749490587324,1.09603927,659.24,658.44,0.30374825]
[1749490587526,1.09603927,659.23,658.44,0.30374825]
[1749490587724,1.09603927,659.22,658.44,0.30374825]
[1749490587925,1.09603927,659.21,658.44,0.30374825]
[1749490588226,1.09603927,659.2,658.44,0.30374825]
[1749490588427,1.09603927,659.19,658.44,0.30374825]
[1749490588626,0.26411156,659.06,658.44,0.30374825]
[1749490595430,0.26411156,659.06,658.33,0.26411758]
[1749490597632,0.26411156,659.06,658.13,3.77350532]
[1749490598036,0.26411156,659.06,658.19,0.26417071]
[1749490606944,0.26411156,659.06,657.7,3.77350532]
[1749490607140,0.26411156,659.06,658.09,0.26423088]
[1749490644374,0.26411156,659.06,658.1,0.30390518]
[1749490659186,0.26411156,659.06,658.1,4.0774105]
[1749490659686,0.26411156,659.06,658.21,3.77350532]
[1749490660180,0.26411156,659.06,658.1,0.30390518]
[1749490660181,0.26411156,659.06,658.14,3.77350532]
[1749490660381,0.26411156,659.06,658.15,0.30388209]
[1749490660686,0.26411156,659.06,658.16,3.77350532]
[1749490660982,0.26411156,659.06,658.16,0.30387747]
[1749490661386,0.26411156,659.06,658.18,3.77350532]
[1749490661886,0.26411156,659.06,658.19,3.77350532]
[1749490663287,0.26411156,659.06,658.18,3.77350532]
[1749490663785,0.26411156,659.06,658.19,3.77350532]
[1749490664685,0.26411156,659.06,658.2,0.303859]
[1749490665085,1.06569781,659.34,658.2,0.303859]
[1749490665383,0.26410655,659.14,658.2,0.303859]
[1749490717719,1.10507493,659.13,658.2,0.303859]
[1749490717921,1.10507493,659.12,658.2,0.303859]
[1749490718115,1.10507493,659.13,658.2,0.303859]
[1749490718316,1.10507493,659.12,658.2,0.303859]
[1749490718520,1.10507493,659.13,658.2,0.303859]
[1749490718819,1.10507493,659.12,658.2,0.303859]
[1749490719019,1.10507493,659.11,658.2,0.303859]
[1749490719217,1.10747142,659.13,658.2,0.303859]
[1749490719416,1.10747142,659.12,658.2,0.303859]
[1749490719724,1.10747142,659.13,658.2,0.303859]
[1749490719917,1.10747142,659.12,658.2,0.303859]
[1749490720221,1.10747142,659.13,658.2,0.303859]
[1749490720422,1.10747142,659.12,658.2,0.303859]
[1749490720717,1.10747142,659.13,658.2,0.303859]
[1749490720918,1.10747142,659.12,658.2,0.303859]
[1749490721116,1.10747142,659.13,658.2,0.303859]
[1749490723124,0.26410655,659.14,658.2,0.303859]
[1749490736434,0.26410655,659.14,658.2,4.07736432]
[1749490736932,0.26410655,659.14,658.21,3.77350532]
[1749490737333,0.26410655,659.14,658.2,4.07736432]
[1749490740038,0.26410655,659.14,658.21,3.77350532]
[1749490741039,0.26410655,659.14,658.2,0.303859]
[1749490741040,0.26410655,659.14,658.2,4.07736432]
[1749490741439,0.26410655,659.14,658.2,0.303859]
[1749490752245,1.10459712,659.13,658.2,0.303859]
[1749490752448,1.10459712,659.12,658.2,0.303859]
[1749490752648,1.10459712,659.11,658.2,0.303859]
[1749490752849,1.10459712,659.1,658.2,0.303859]
[1749490753149,1.10459712,659.13,658.2,0.303859]
[1749490753446,1.10459712,659.12,658.2,0.303859]
[1749490753643,1.10459712,659.11,658.2,0.303859]
[1749490753849,1.10459712,659.1,658.2,0.303859]
[1749490754045,1.10459712,659.13,658.2,0.303859]
[1749490754250,1.10459712,659.12,658.2,0.303859]
[1749490754448,1.10459712,659.11,658.2,0.303859]
[1749490754748,1.10459712,659.1,658.2,0.303859]
[1749490755046,1.10459712,659.13,658.2,0.303859]
[1749490755247,1.10459712,659.12,658.2,0.303859]
[1749490755451,1.10459712,659.11,658.2,0.303859]
[1749490755652,1.10459712,659.1,658.2,0.303859]
[1749490755852,1.10459712,659.13,658.2,0.303859]
[1749490756145,1.10459712,659.12,658.2,0.303859]
[1749490756351,1.10459712,659.11,658.2,0.303859]
[1749490756550,1.10459712,659.1,658.2,0.303859]
[1749490756750,1.10459712,659.13,658.2,0.303859]
[1749490757046,1.10459712,659.12,658.2,0.303859]
[1749490757251,1.10459712,659.11,658.2,0.303859]
[1749490757449,1.10459712,659.13,658.2,0.303859]
[1749490757651,1.10459712,659.12,658.2,0.303859]
[1749490757951,0.26410655,659.14,658.2,0.303859]
[1749490757952,1.10459712,659.11,658.2,0.303859]
[1749490758147,1.10459712,659.13,658.2,0.303859]
[1749490758447,1.10459712,659.12,658.2,0.303859]
[1749490758647,1.10459712,659.13,658.2,0.303859]
[1749490758847,1.10459712,659.12,658.2,0.303859]
[1749490759050,1.10459712,659.13,658.2,0.303859]
[1749490759252,1.10459712,659.12,658.2,0.303859]
[1749490759451,1.10459712,659.13,658.2,0.303859]
[1749490759649,1.10459712,659.12,658.2,0.303859]
[1749490759852,1.10459712,659.13,658.2,0.303859]
[1749490760154,1.10459712,659.12,658.2,0.303859]
[1749490760354,0.26410655,659.14,658.2,0.303859]
[1749490760547,1.10357835,659.13,658.2,0.303859]
[1749490760849,1.10357835,659.12,658.2,0.303859]
[1749490761048,0.26410655,659.14,658.2,0.303859]
[1749490761049,1.10357835,659.13,658.2,0.303859]
[1749490761354,0.26410655,659.14,658.2,0.303859]
[1749490765750,0.26410655,659.14,658.23,3.77350532]
[1749490767049,0.26410655,659.14,658.2,0.303859]
[1749490768450,0.26410655,659.14,658.2,4.07736432]
[1749490769350,0.26410655,659.14,658.21,3.77350532]
[1749490771152,0.26410655,659.14,658.21,0.30385439]
[1749490783659,0.26410655,659.14,658.23,3.77350532]
[1749490784161,0.26410655,659.14,658.24,3.77350532]
[1749490784664,0.26410655,659.14,658.27,3.77350532]
[1749490786567,0.26410655,659.14,658.29,3.77350532]
[1749490787761,0.26410655,659.14,658.3,3.77350532]
[1749490788262,0.26410655,659.14,658.35,3.77350532]
[1749490789068,0.26410655,659.14,658.38,3.77350532]
[1749490789470,0.26410655,659.14,658.27,3.77350532]
[1749490791866,0.26410655,659.14,658.22,3.77350532]
[1749490792268,0.26410655,659.14,658.21,4.07735971]
[1749490793168,0.26410655,659.14,658.21,0.30385439]
[1749490795774,0.26410655,659.14,658.3,3.77350532]
[1749490796373,0.26410655,659.14,658.27,3.77350532]
[1749490796778,0.26410655,659.14,658.29,3.77350532]
[1749490797277,0.26410655,659.14,658.3,3.77350532]
[1749490798574,0.26410655,659.14,658.32,3.77350532]
[1749490798977,0.26410655,659.14,658.31,3.77350532]
[1749490799777,0.26410655,659.14,658.21,4.07735971]
[1749490800583,1.10482294,659.35,658.21,4.07735971]
[1749490800778,1.10448763,659.36,658.23,3.77350532]
[1749490800983,0.26408351,659.24,658.24,0.30384054]
[1749490801181,0.26408351,659.24,658.25,3.77350532]
[1749490801382,0.26408351,659.24,658.26,0.30383131]
[1749490801780,0.26408351,659.24,658.26,4.07733663]
[1749490802179,0.26408351,659.24,658.26,0.30383131]
[1749490822399,0.26408351,659.24,658.26,4.07733663]
[1749490823204,0.26408351,659.24,658.27,3.77350532]
[1749490823406,0.26408351,659.24,658.28,0.30382208]
[1749490823602,0.26408351,659.24,658.37,3.77350532]
[1749490824604,0.26408351,659.24,658.32,3.77350532]
[1749490824805,0.26408351,659.24,658.32,4.07730894]
[1749490825904,0.26408351,659.24,658.32,0.30380362]
[1749490826806,0.26408351,659.24,658.33,3.77350532]
[1749490827305,0.26408351,659.24,658.34,3.77350532]
[1749490827709,0.26408351,659.24,658.35,3.77350532]
[1749490828209,0.26408351,659.24,658.37,3.77350532]
[1749490829013,0.26408351,659.24,658.38,3.77350532]
[1749490829810,0.26408351,659.24,658.37,3.77350532]
[1749490830815,0.26408351,659.24,658.38,3.77350532]
[1749490831817,0.26408351,659.24,658.32,0.30380362]
[1749490836623,0.26408351,659.24,658.36,3.77350532]
[1749490837119,0.26408351,659.24,658.38,3.77350532]
[1749490837622,0.26408351,659.24,658.39,3.77350532]
[1749490838021,0.26408351,659.24,658.38,3.77350532]
[1749490838924,0.26408351,659.24,658.36,3.77350532]
[1749490839322,0.26408351,659.24,658.35,3.77350532]
[1749490841622,0.26408351,659.24,658.34,3.77350532]
[1749490845423,0.26408351,659.24,658.33,3.77350532]
[1749490846728,0.26408351,659.24,658.32,0.30380362]
[1749490848027,0.26408351,659.24,658.33,3.77350532]
[1749490848527,0.26408351,659.24,658.32,4.07730894]
[1749490849030,0.26408351,659.24,658.35,3.77350532]
[1749490849530,0.26408351,659.24,658.37,3.77350532]
[1749490850030,0.26408351,659.24,658.36,3.77350532]
[1749490850225,0.26408351,659.24,658.32,0.30380362]
[1749490852430,1.10296456,659.23,658.32,0.30380362]
[1749490852729,1.10296456,659.22,658.32,0.30380362]
[1749490852927,1.10296456,659.21,658.32,0.30380362]
[1749490853131,1.10296456,659.2,658.32,0.30380362]
[1749490853331,1.10296456,659.19,658.32,0.30380362]